bitfinex-derivatives/quotes_BTCF0:USTF0_20250325
["timestamp","ask_amount","ask_price","bid_price","bid_amount"]
[1742945612381,0.36532483,87392.0,87391.0,0.5085145]
[1742945614993,0.36532483,87392.0,87391.0,0.50897221]
[1742945617282,0.36532483,87392.0,87391.0,0.43627221]
[1742945618893,0.36532483,87392.0,87391.0,0.43667221]
[1742945619691,0.36532483,87392.0,87391.0,0.32225771]
[1742945623895,0.36532483,87392.0,87391.0,0.25105771]
[1742945626601,0.36532483,87392.0,87391.0,0.36547221]
[1742945626790,0.25091163,87392.0,87391.0,0.50327221]
[1742945627105,0.0571921,87415.0,87399.0,0.114404]
[1742945627301,0.3608,87433.0,87415.0,0.1143831]
[1742945627302,0.01329844,87420.0,87415.0,0.1143831]
[1742945627498,0.00124,87416.0,87415.0,0.7457831]
[1742945627698,0.00124,87416.0,87415.0,2.2457831]
[1742945627900,0.1147818,87416.0,87415.0,0.7457831]
[1742945628095,0.11566181,87416.0,87415.0,0.7457831]
[1742945628806,0.1147818,87416.0,87415.0,0.7457831]
[1742945628990,0.1156218,87416.0,87415.0,0.7457831]
[1742945629194,0.1843218,87416.0,87415.0,0.8891831]
[1742945629396,0.1834818,87416.0,87415.0,0.8891831]
[1742945629597,0.1843218,87416.0,87415.0,0.8891831]
[1742945630098,0.1843218,87416.0,87415.0,0.9022041]
[1742945630897,0.1834818,87416.0,87415.0,0.9022041]
[1742945631305,0.1834818,87416.0,87415.0,0.8891831]
[1742945635908,0.1834818,87416.0,87415.0,0.8167831]
[1742945636106,0.1844018,87416.0,87415.0,0.2706]
[1742945637113,0.1844018,87416.0,87415.0,0.4571831]
[1742945637914,0.1844018,87416.0,87415.0,0.3428]
[1742945638212,0.1844018,87416.0,87415.0,0.4571831]
[1742945639114,0.1844018,87416.0,87415.0,0.3428]
[1742945639313,0.1844018,87416.0,87415.0,0.4571831]
[1742945640305,0.1844018,87416.0,87415.0,0.3428]
[1742945640707,0.1844018,87416.0,87415.0,0.4571831]
[1742945640913,0.1844018,87416.0,87415.0,0.3428]
[1742945641108,0.1844018,87416.0,87415.0,0.4571831]
[1742945642516,0.1844018,87416.0,87415.0,0.3428]
[1742945643112,0.1844018,87416.0,87415.0,0.4571831]
[1742945643907,0.1844018,87416.0,87415.0,0.3428]
[1742945644916,0.1844018,87416.0,87415.0,0.4571831]
[1742945645508,0.2543018,87416.0,87415.0,0.4571831]
[1742945645709,0.2543018,87416.0,87415.0,0.3428]
[1742945646014,0.2543018,87416.0,87415.0,0.4571831]
[1742945646215,0.3229018,87416.0,87415.0,0.4571831]
[1742945646714,0.3229018,87416.0,87415.0,0.5228831]
[1742945650312,0.3229018,87416.0,87415.0,0.0006]
[1742945650517,0.3229018,87416.0,87415.0,0.17]
[1742945650720,0.3229018,87416.0,87415.0,0.17064]
[1742945651320,0.4330218,87416.0,87415.0,0.17064]
[1742945651717,0.4330218,87416.0,87398.0,0.1144041]
[1742945651718,0.0571945,87411.0,87398.0,0.1144041]
[1742945651919,0.1143922,87408.0,87407.0,0.15062926]
[1742945652126,0.1143922,87408.0,87396.0,0.0830216]
[1742945652127,0.1144066,87397.0,87396.0,0.0130216]
[1742945652422,0.2245266,87397.0,87396.0,0.1806]
[1742945652815,0.22556661,87397.0,87396.0,0.1806]
[1742945653321,0.36276661,87397.0,87396.0,0.1806]
[1742945653523,0.37576261,87397.0,87396.0,0.2531]
[1742945653915,0.37576261,87397.0,87396.0,0.2551]
[1742945654110,0.37576261,87397.0,87396.0,0.3675079]
[1742945654510,0.37576261,87397.0,87396.0,0.4373079]
[1742945654727,0.37576261,87397.0,87396.0,0.3229]
[1742945655727,0.37576261,87397.0,87396.0,0.3209]
[1742945656323,0.37576261,87397.0,87396.0,0.4353079]
[1742945660723,0.11544661,87397.0,87396.0,0.4353079]
[1742945661120,0.00104001,87397.0,87396.0,0.4353079]
[1742945661319,0.00104001,87397.0,87396.0,1.9353079]
[1742945661621,0.1148027,87400.0,87399.0,0.114404]
[1742945661926,0.1148027,87400.0,87399.0,0.5914]
[1742945661927,0.1730047,87400.0,87399.0,0.5914]
[1742945662321,0.1730047,87400.0,87399.0,0.844304]
[1742945662523,0.3105047,87400.0,87399.0,0.844304]
[1742945663031,0.3095047,87400.0,87399.0,0.844304]
[1742945663226,0.31054471,87400.0,87399.0,0.844304]
[1742945663613,0.3095047,87400.0,87399.0,0.844304]
[1742945667031,0.3095047,87400.0,87399.0,0.483504]
[1742945668522,0.3105047,87400.0,87399.0,0.483504]
[1742945669316,0.0681,87400.0,87399.0,0.483504]
[1742945669521,0.0014,87400.0,87399.0,0.483504]
[1742945670632,0.0014,87400.0,87399.0,0.844304]
[1742945670827,0.0004,87400.0,87399.0,0.844304]
[1742945673527,0.0004,87400.0,87399.0,0.85714481]
[1742945674534,0.13678619,87411.0,87410.0,0.1143896]
[1742945674731,0.13786619,87411.0,87410.0,0.3750296]
[1742945675148,0.13786619,87411.0,87410.0,1.8750296]
[1742945675331,0.13678619,87411.0,87410.0,1.8750296]
[1742945677629,0.1143844,87414.0,87413.0,0.1143857]
[1742945677935,0.0004,87416.0,87415.0,0.1143831]
[1742945678139,0.0004,87416.0,87415.0,0.3649831]
[1742945678525,0.0004,87416.0,87415.0,0.51299219]
[1742945701346,0.0004,87416.0,87415.0,0.4326831]
[1742945701546,0.0004,87416.0,87415.0,0.3649831]
[1742945702757,0.0004,87416.0,87415.0,0.5723831]
[1742945704957,0.13678619,87425.0,87424.0,0.1143713]
[1742945705256,0.13778619,87425.0,87424.0,0.5053713]
[1742945705458,0.13778619,87425.0,87424.0,2.0053713]
[1742945705754,0.13678619,87425.0,87424.0,2.0053713]
[1742945706841,0.13678619,87425.0,87424.0,2.1394713]
[1742945708556,0.1304,87427.0,87426.0,0.1143687]
[1742945708748,0.1304,87427.0,87426.0,0.3850087]
[1742945711556,0.2447674,87427.0,87426.0,0.3450087]
[1742945711761,0.2457674,87427.0,87426.0,0.3450087]
[1742945715260,0.25812665,87427.0,87426.0,0.3450087]
[1742945718565,0.2457674,87427.0,87426.0,0.3450087]
[1742945718770,0.1314,87427.0,87426.0,0.3450087]
[1742945718973,0.1314,87427.0,87426.0,0.5490087]
[1742945719170,0.1314,87427.0,87426.0,0.56167665]
[1742945719359,0.1314,87427.0,87426.0,2.06167665]
[1742945719559,0.1304,87427.0,87426.0,2.06167665]
[1742945720670,0.2447674,87427.0,87426.0,2.06167665]
[1742945725166,0.1304,87427.0,87426.0,2.06167665]
[1742945729676,0.1304,87427.0,87426.0,0.56167665]
[1742945729863,0.13144001,87427.0,87426.0,0.56167665]
[1742945730170,0.24580741,87427.0,87426.0,2.06167665]
[1742945730370,0.2447674,87427.0,87426.0,2.06167665]
[1742945730772,0.2447674,87427.0,87426.0,1.9111087]
[1742945730977,0.3548474,87427.0,87426.0,0.23064]
[1742945731174,0.1143831,87415.0,87412.0,8e-05]
[1742945731482,0.2244631,87415.0,87414.0,0.50374547]
[1742945731662,0.22570311,87415.0,87414.0,0.52374547]
[1742945731866,0.23822146,87415.0,87414.0,0.63812987]
[1742945732271,0.35812146,87415.0,87414.0,0.63812987]
[1742945734872,0.35812146,87415.0,87414.0,0.2950644]
[1742945736373,0.35812146,87415.0,87414.0,0.18068]
[1742945744086,0.46040879,87415.0,87414.0,0.18068]
[1742945750781,0.35812146,87415.0,87414.0,0.18068]
[1742945765287,0.41372765,87415.0,87414.0,0.18068]
[1742945766195,0.1143922,87408.0,87407.0,0.00062926]
[1742945766387,0.11579221,87408.0,87407.0,0.00062926]
[1742945766588,0.11579221,87408.0,87407.0,0.00122926]
[1742945766890,0.17049221,87408.0,87407.0,0.00122926]
[1742945767592,0.22549221,87408.0,87407.0,0.00122926]
[1742945767785,0.22549221,87408.0,87407.0,0.18122926]
[1742945767984,0.22549221,87408.0,87407.0,0.24082926]
[1742945768688,0.2810984,87408.0,87407.0,0.24082926]
[1742945770300,0.2260984,87408.0,87407.0,0.24082926]
[1742945770497,0.1713984,87408.0,87407.0,0.35522276]
[1742945770895,0.1713984,87408.0,87407.0,0.24082926]
[1742945771203,0.1713984,87408.0,87407.0,0.35522276]
[1742945771595,0.1713984,87408.0,87407.0,0.29812926]
[1742945772102,0.1713984,87408.0,87407.0,0.41252276]
[1742945772502,0.1713984,87408.0,87407.0,0.29812926]
[1742945772687,0.2866984,87408.0,87407.0,0.29812926]
[1742945773100,0.1713984,87408.0,87407.0,0.29812926]
[1742945773902,0.1713984,87408.0,87407.0,0.41252276]
[1742945774701,0.2283984,87408.0,87407.0,0.41252276]
[1742945775093,0.2843984,87408.0,87407.0,0.41252276]
[1742945775499,0.2283984,87408.0,87407.0,0.41252276]
[1742945776606,0.1713984,87408.0,87407.0,0.41252276]
[1742945777199,0.25240351,87408.0,87407.0,0.41252276]
[1742945781312,0.30880351,87408.0,87407.0,0.41252276]
[1742945785702,0.36900351,87408.0,87407.0,0.41252276]
[1742945789013,0.36900351,87408.0,87407.0,1.91252276]
[1742945789806,0.23239221,87408.0,87407.0,1.91252276]
[1742945804926,0.11800001,87408.0,87407.0,1.91252276]
[1742945805631,0.23239221,87408.0,87407.0,1.91252276]
[1742945806032,0.28800135,87408.0,87407.0,1.91252276]
[1742945809729,0.17360915,87408.0,87407.0,1.91252276]
[1742945809936,0.2049325,87413.0,87412.0,0.114387]
[1742945810125,0.2049325,87413.0,87412.0,0.344987]
[1742945810341,0.2049325,87415.0,87414.0,0.1143844]
[1742945810546,0.41008428,87428.0,87427.0,0.1143674]
[1742945810747,0.41116428,87428.0,87427.0,0.3653674]
[1742945811045,0.35397788,87428.0,87427.0,0.3653674]
[1742945811245,0.23961178,87428.0,87427.0,0.3653674]
[1742945814251,0.29471178,87428.0,87427.0,0.3653674]
[1742945816957,0.05618,87428.0,87427.0,0.3653674]
[1742945817152,0.00108,87428.0,87427.0,0.3653674]
[1742945817352,0.0004,87432.0,87431.0,0.1143621]
[1742945817549,0.0014,87432.0,87431.0,0.3749621]
[1742945821961,0.0014,87432.0,87431.0,0.38367903]
[1742945823856,0.0004,87432.0,87431.0,0.38367903]
[1742945824157,0.0004,87432.0,87431.0,0.43857903]
[1742945824761,0.0014,87432.0,87431.0,0.43857903]
[1742945825162,0.0526,87432.0,87431.0,0.43857903]
[1742945825365,0.107,87432.0,87431.0,0.43857903]
[1742945825661,0.108,87432.0,87431.0,0.43857903]
[1742945826063,0.108,87432.0,87431.0,0.49247903]
[1742945826359,0.0536,87432.0,87431.0,0.49247903]
[1742945826670,0.0526,87432.0,87431.0,0.49247903]
[1742945826967,0.0536,87432.0,87431.0,0.49247903]
[1742945827767,0.06568711,87432.0,87431.0,0.49247903]
[1742945828064,0.0536,87432.0,87431.0,0.3749621]
[1742945828978,0.0536,87432.0,87431.0,0.4824621]
[1742945831255,0.0014,87432.0,87431.0,0.5373621]
[1742945831455,0.0004,87432.0,87431.0,0.5373621]
[1742945832064,0.0004,87432.0,87431.0,2.0373621]
[1742945832460,0.0548,87436.0,87432.0,0.05718]
[1742945832660,0.0548,87436.0,87435.0,0.1143569]
[1742945832857,0.0548,87436.0,87435.0,0.3849569]
[1742945833063,0.05434254,87436.0,87435.0,0.4885569]
[1742945835069,0.05434254,87436.0,87435.0,0.50066031]
[1742945835571,0.05434254,87436.0,87435.0,0.50026031]
[1742945837066,0.03194697,87437.0,87436.0,0.1143556]
[1742945837262,0.08194697,87437.0,87436.0,0.4501356]
[1742945837575,0.03194697,87437.0,87436.0,0.4501356]
[1742945837870,0.03148951,87437.0,87436.0,0.4501356]
[1742945840373,0.05155627,87451.0,87436.0,0.33538]
[1742945840672,0.02323083,87457.0,87450.0,0.057168]
[1742945840875,0.19897584,87456.0,87455.0,0.1143307]
[1742945841056,0.1051,87463.0,87460.0,0.0571615]
[1742945841257,0.1051,87463.0,87462.0,0.1143216]
[1742945841456,0.15938,87463.0,87462.0,0.3949216]
[1742945841969,0.15938,87463.0,87462.0,0.4451216]
[1742945843670,0.15938,87463.0,87462.0,0.4992216]
[1742945843979,0.1587,87463.0,87462.0,0.4992216]
[1742945844767,0.35281988,87488.0,87477.0,0.114302]
[1742945844972,0.20505696,87478.0,87477.0,0.274902]
[1742945845466,0.37105766,87478.0,87477.0,0.274902]
[1742945845865,0.42205766,87478.0,87477.0,0.274902]
[1742945846265,0.30775696,87478.0,87477.0,0.274902]
[1742945847074,0.53201766,87478.0,87477.0,0.114902]
[1742945847270,0.53201766,87478.0,87477.0,0.0006]
[1742945847472,0.53201766,87478.0,87477.0,0.114302]
[1742945847865,0.3276407,87478.0,87477.0,0.115062]
[1742945849371,0.3276407,87478.0,87477.0,0.00076]
[1742945849570,0.114302,87477.0,87476.0,8e-05]
[1742945849868,0.166682,87477.0,87476.0,0.00068]
[1742945850074,0.217382,87477.0,87476.0,8e-05]
[1742945850459,0.217382,87477.0,87476.0,0.00068]
[1742945851772,0.217382,87477.0,87476.0,8e-05]
[1742945852276,0.217382,87477.0,87476.0,0.00068]
[1742945853065,0.217382,87477.0,87476.0,8e-05]
[1742945853461,0.1143085,87472.0,87471.0,0.00045729]
[1742945853658,0.1149885,87472.0,87471.0,0.00045729]
[1742945853868,0.1149885,87472.0,87471.0,0.11476709]
[1742945854074,0.1149885,87472.0,87471.0,0.11536709]
[1742945854273,0.2185885,87472.0,87471.0,0.11536709]
[1742945855165,0.2185885,87472.0,87471.0,0.33746709]
[1742945859177,0.2185885,87472.0,87471.0,0.16746709]
[1742945862178,0.2185885,87472.0,87471.0,0.05315729]
[1742945862381,0.0571612,87462.0,87454.0,0.1143316]
[1742945862583,0.1143294,87456.0,87455.0,0.05055738]
[1742945862878,0.1143294,87456.0,87455.0,0.16428808]
[1742945863082,0.11528941,87456.0,87455.0,0.16488808]
[1742945863275,0.21488941,87456.0,87455.0,0.16488808]
[1742945865780,0.21488941,87456.0,87455.0,0.16788808]
[1742945867381,0.21488941,87456.0,87455.0,0.16488808]
[1742945868669,0.21588941,87456.0,87455.0,0.16488808]
[1742945872479,0.21588941,87456.0,87455.0,0.00105738]
[1742945877093,0.21588941,87456.0,87455.0,0.00045738]
[1742945877486,0.62348941,87456.0,87455.0,0.00045738]
[1742945878800,0.63384941,87456.0,87455.0,0.27478808]
[1742945878999,0.63384941,87456.0,87455.0,0.37822808]
[1742945881001,0.63284941,87456.0,87455.0,0.37822808]
[1742945881597,0.52288941,87456.0,87455.0,0.37822808]
[1742945881803,0.40856001,87456.0,87455.0,0.37822808]
[1742945882786,0.52288941,87456.0,87455.0,0.26389738]
[1742945883294,0.57728941,87456.0,87455.0,0.26389738]
[1742945883598,0.16968941,87456.0,87455.0,0.26389738]
[1742945883802,0.22168941,87456.0,87455.0,0.26389738]
[1742945885093,0.22168941,87456.0,87455.0,0.10389738]
[1742945885294,0.22168941,87456.0,87455.0,0.10325738]
[1742945885900,0.22168941,87456.0,87455.0,0.05449738]
[1742945886098,0.22168941,87456.0,87455.0,0.00045738]
[1742945886300,0.58248941,87456.0,87455.0,0.00045738]
[1742945887210,0.58348941,87456.0,87455.0,0.00045738]
[1742945894814,0.75408383,87456.0,87455.0,0.00045738]
[1742945895505,0.69691973,87456.0,87452.0,0.0539]
[1742945895706,0.1143399,87448.0,87447.0,0.00017152]
[1742945895909,0.58637991,87448.0,87447.0,0.00017152]
[1742945896501,0.69247991,87448.0,87447.0,0.00017152]
[1742945897705,0.69247991,87448.0,87447.0,0.00117152]
[1742945901015,0.69247991,87448.0,87447.0,0.17117152]
[1742945901217,0.58637991,87448.0,87447.0,0.17181152]
[1742945901517,0.59484905,87448.0,87447.0,0.17181152]
[1742945903502,0.64914905,87448.0,87447.0,0.17181152]
[1742945906515,0.59484905,87448.0,87447.0,0.17181152]
[1742945907104,0.11561991,87448.0,87447.0,0.28615272]
[1742945907310,0.22557991,87448.0,87447.0,0.28615272]
[1742945908011,0.22557991,87448.0,87447.0,0.39395272]
[1742945908510,0.22557991,87448.0,87447.0,0.27961152]
[1742945908920,0.22557991,87448.0,87447.0,0.39395272]
[1742945911820,0.2246999,87448.0,87447.0,0.39395272]
[1742945912403,0.2256199,87448.0,87447.0,0.39395272]
[1742945912608,0.1156599,87448.0,87447.0,0.39395272]
[1742945913421,0.00132,87448.0,87447.0,0.39395272]
[1742945913605,0.0004,87448.0,87447.0,0.39395272]
[1742945914011,0.0004,87448.0,87447.0,0.40591752]
[1742945914420,0.00128001,87448.0,87447.0,0.40591752]
[1742945914722,0.0004,87448.0,87447.0,0.40591752]
[1742945915922,0.0004,87448.0,87447.0,1.90591752]
[1742945916117,0.057166,87454.0,87453.0,0.1714967]
[1742945916317,0.057166,87454.0,87453.0,0.5634967]
[1742945917914,0.17104072,87454.0,87453.0,0.5634967]
[1742945920226,0.1143304,87456.0,87455.0,0.1143294]
[1742945920424,0.1152504,87456.0,87455.0,0.3445294]
[1742945921620,0.1162504,87456.0,87455.0,0.3445294]
[1742945924726,0.1672504,87456.0,87455.0,0.3445294]
[1742945924926,0.2181504,87456.0,87455.0,0.3445294]
[1742945925328,0.2716504,87456.0,87455.0,0.3445294]
[1742945927940,0.2716504,87456.0,87455.0,0.34498678]
[1742945930840,0.2181504,87456.0,87455.0,0.34498678]
[1742945933633,0.2181504,87456.0,87455.0,0.39688678]
[1742945934240,0.2181504,87456.0,87455.0,0.00105738]
[1742945934537,0.5789504,87456.0,87455.0,0.00105738]
[1742945934747,0.1143399,87448.0,87441.0,0.0519]
[1742945934943,0.58593991,87448.0,87447.0,0.00077152]
[1742945935147,0.1143451,87444.0,87443.0,0.27421196]
[1742945935447,0.1143451,87444.0,87443.0,0.27481196]
[1742945935630,0.11538511,87444.0,87443.0,0.27481196]
[1742945935835,0.1143451,87444.0,87443.0,0.27421196]
[1742945936145,0.1677451,87444.0,87443.0,0.27421196]
[1742945936731,0.5285451,87444.0,87443.0,0.27421196]
[1742945936937,0.5285451,87444.0,87443.0,0.27521196]
[1742945937441,0.5285451,87444.0,87443.0,0.27721196]
[1742945938035,0.5285451,87444.0,87443.0,0.27521196]
[1742945938446,0.5285451,87444.0,87443.0,0.27421196]
[1742945938943,0.1143464,87443.0,87442.0,8e-05]
[1742945939143,0.1662464,87443.0,87442.0,8e-05]
[1742945939342,0.2184464,87443.0,87442.0,8e-05]
[1742945940437,0.1143504,87440.0,87439.0,0.00045746]
[1742945940835,0.11539041,87440.0,87439.0,0.00045746]
[1742945941346,0.114353,87438.0,87437.0,8e-05]
[1742945941543,0.1143556,87436.0,87435.0,0.00017152]
[1742945941748,0.4751556,87436.0,87435.0,0.02017152]
[1742945942143,0.5778556,87436.0,87435.0,0.02017152]
[1742945942443,0.57889561,87436.0,87435.0,0.02017152]
[1742945943133,0.5778556,87436.0,87435.0,0.02017152]
[1742945943730,0.5778556,87436.0,87435.0,0.01977152]
[1742945943938,0.59102273,87436.0,87435.0,0.01977152]
[1742945946347,0.59056527,87436.0,87435.0,0.01977152]
[1742945947550,0.59056527,87436.0,87435.0,2.01977152]
[1742945947749,0.59160528,87436.0,87435.0,2.02037152]
[1742945947951,0.01420714,87436.0,87435.0,2.49552842]
[1742945948147,0.001,87436.0,87435.0,2.64912842]
[1742945948341,0.10992,87437.0,87436.0,0.1143556]
[1742945948543,0.2242743,87437.0,87436.0,1.8745556]
[1742945948742,0.2242743,87437.0,87436.0,1.9762556]
[1742945949338,0.2242743,87437.0,87436.0,1.8623]
[1742945949539,0.2242743,87437.0,87436.0,1.9766556]
[1742945951141,0.22381684,87437.0,87436.0,1.9766556]
[1742945952037,0.22381684,87437.0,87436.0,1.8623]
[1742945952245,0.22381684,87437.0,87436.0,0.4766556]
[1742945952444,0.1143543,87437.0,87436.0,0.4766556]
[1742945952644,0.2194543,87437.0,87436.0,0.4766556]
[1742945953153,0.1143543,87437.0,87436.0,0.4766556]
[1742945953341,0.10992,87439.0,87438.0,0.114353]
[1742945953537,0.2242717,87439.0,87438.0,0.384953]
[1742945953742,0.2242717,87439.0,87438.0,0.384553]
[1742945956146,0.11451402,87446.0,87445.0,0.1143438]
[1742945956450,0.22547403,87446.0,87445.0,0.2850238]
[1742945956854,0.22547403,87446.0,87445.0,0.00068]
[1742945957154,0.1143464,87443.0,87442.0,0.1053]
[1742945957350,0.1154264,87443.0,87442.0,0.10594]
[1742945958755,0.1154264,87443.0,87442.0,0.2202877]
[1742945959466,0.1154264,87443.0,87442.0,0.25594]
[1742945959660,0.1154264,87443.0,87442.0,0.3702877]
[1742945961354,0.1164264,87443.0,87442.0,0.3702877]
[1742945963351,0.1154264,87443.0,87442.0,0.3702877]
[1742945963956,0.1154264,87443.0,87442.0,0.3712877]
[1742945964560,0.1154264,87443.0,87442.0,0.3702877]
[1742945964857,0.1154264,87443.0,87442.0,0.3712877]
[1742945966358,0.1154264,87443.0,87442.0,0.3722877]
[1742945966959,0.1154264,87443.0,87442.0,0.3712877]
[1742945967955,0.1154264,87443.0,87442.0,0.3702877]
[1742945968958,0.2207264,87443.0,87442.0,0.3702877]
[1742945969567,0.1154264,87443.0,87442.0,0.3702877]
[1742945969857,0.1684264,87443.0,87442.0,0.3702877]
[1742945970158,0.1154264,87443.0,87442.0,0.3702877]
[1742945972650,0.1154264,87443.0,87442.0,0.3712877]
[1742945973264,0.2262264,87443.0,87442.0,0.3712877]
[1742945973764,0.1722264,87443.0,87442.0,0.3702877]
[1742945976065,0.1722264,87443.0,87442.0,0.3712877]
[1742945976655,0.2266264,87443.0,87442.0,0.3702877]
[1742945981667,0.2266264,87443.0,87442.0,2.3702877]
[1742945981868,0.2255464,87443.0,87442.0,2.3702877]
[1742945982974,0.2255464,87443.0,87442.0,2.3712877]
[1742945989173,0.2255464,87443.0,87442.0,3.8712877]
[1742945992178,0.1112,87443.0,87442.0,3.8712877]
[1742945992363,0.2255464,87443.0,87442.0,3.8712877]
[1742945995175,0.2255464,87443.0,87442.0,3.8722877]
[1742945995868,0.2255464,87443.0,87442.0,3.8712877]
[1742945996679,0.00017152,87446.0,87443.0,0.0571732]
[1742945996883,0.11451552,87446.0,87445.0,0.1143438]
[1742945997083,0.11451552,87446.0,87445.0,0.5080438]
[1742945997775,0.17091552,87446.0,87445.0,0.5080438]
[1742945998574,0.11451552,87446.0,87445.0,0.5080438]
[1742945998964,0.22791552,87446.0,87445.0,0.5080438]
[1742946008785,0.22791552,87446.0,87445.0,0.3937]
[1742946008992,0.58871552,87446.0,87445.0,0.2806]
[1742946009191,0.1143438,87445.0,87444.0,8e-05]
[1742946009391,0.11558381,87445.0,87444.0,0.0006]
[1742946009582,0.28058381,87445.0,87444.0,0.0006]
[1742946012591,0.28058381,87445.0,87444.0,0.1506]
[1742946012784,0.39050381,87445.0,87444.0,0.2649451]
[1742946012997,0.3357638,87445.0,87444.0,0.2649451]
[1742946013198,0.3357638,87445.0,87444.0,0.3726451]
[1742946013391,0.22142,87445.0,87444.0,0.3726451]
[1742946013997,0.2258438,87445.0,87444.0,0.3726451]
[1742946015294,0.1115,87445.0,87444.0,0.3726451]
[1742946015594,0.1115,87445.0,87444.0,2.3726451]
[1742946015801,0.2258438,87445.0,87444.0,2.3726451]
[1742946017991,0.1143438,87445.0,87444.0,2.3726451]
[1742946021100,0.13627875,87452.0,87451.0,0.114336]
[1742946021292,0.00124001,87452.0,87451.0,0.715736]
[1742946021489,0.1143278,87458.0,87457.0,0.1143281]
[1742946021688,0.11556781,87458.0,87457.0,0.3855681]
[1742946022599,0.22206781,87458.0,87457.0,0.3855681]
[1742946024395,0.11556781,87458.0,87457.0,0.3855681]
[1742946025305,0.00124001,87458.0,87457.0,0.3855681]
[1742946025495,0.17034844,87459.0,87458.0,0.1143268]
[1742946025696,0.17034844,87459.0,87458.0,0.75736302]
[1742946025697,0.17158845,87459.0,87458.0,0.75736302]
[1742946026210,0.00124001,87459.0,87458.0,0.75736302]
[1742946026509,0.1143209,87463.0,87462.0,0.1143203]
[1742946026706,0.1156009,87463.0,87462.0,0.3849603]
[1742946027401,0.0004,87464.0,87463.0,0.1143203]
[1742946027608,0.1143096,87472.0,87471.0,0.1143072]
[1742946027806,0.11554961,87472.0,87471.0,0.3955472]
[1742946028708,0.11554961,87472.0,87471.0,0.4527015]
[1742946028903,0.22604961,87472.0,87471.0,0.4527015]
[1742946030310,0.22604961,87472.0,87471.0,0.45315879]
[1742946036216,0.22604961,87472.0,87471.0,0.00169729]
[1742946036418,0.58684961,87472.0,87471.0,0.00169729]
[1742946036709,0.58684961,87472.0,87471.0,0.00045729]
[1742946037211,0.58684961,87472.0,87471.0,0.00105729]
[1742946037410,0.58684961,87472.0,87455.0,0.00045738]
[1742946037411,0.1143294,87456.0,87455.0,0.00045738]
[1742946037714,0.2254894,87456.0,87455.0,0.00113738]
[1742946038012,0.1143334,87453.0,87447.0,0.34306547]
[1742946038207,0.11537341,87453.0,87452.0,0.27481196]
[1742946038406,0.11537341,87453.0,87452.0,0.00068]
[1742946038705,0.1143451,87444.0,87443.0,0.3608]
[1742946039012,0.22526511,87444.0,87443.0,0.3614]
[1742946040514,0.23690401,87444.0,87443.0,0.3614]
[1742946041301,0.23690401,87444.0,87443.0,0.0016]
[1742946041516,0.32000401,87444.0,87443.0,0.0016]
[1742946043511,0.32000401,87444.0,87443.0,0.001]
[1742946044907,0.1143504,87440.0,87439.0,0.00053746]
[1742946045216,0.11539041,87440.0,87439.0,0.00053746]
[1742946046717,0.11539041,87440.0,87439.0,0.00153746]
[1742946046917,0.11539041,87440.0,87439.0,0.00253746]
[1742946054021,0.11539041,87440.0,87439.0,0.00245746]
[1742946056722,0.11539041,87440.0,87439.0,6e-08]
[1742946056923,0.0571853,87425.0,87405.0,0.3608]
[1742946057232,0.1143818,87416.0,87415.0,0.056]
[1742946057528,0.11562181,87416.0,87415.0,0.056]
[1742946057913,0.12400803,87416.0,87415.0,0.056]
[1742946058119,0.11900803,87416.0,87415.0,0.056]
[1742946059026,0.14530803,87416.0,87415.0,0.056]
[1742946059531,0.14570803,87416.0,87415.0,0.056]
[1742946060029,0.13970803,87416.0,87415.0,0.056]
[1742946060226,0.15172691,87416.0,87415.0,0.061]
[1742946060418,0.15172691,87416.0,87415.0,0.0616]
[1742946060817,0.15172691,87416.0,87415.0,0.0666]
[1742946061630,0.12542691,87416.0,87415.0,0.0666]
[1742946063930,0.22696069,87416.0,87415.0,0.2466]
[1742946070429,0.22696069,87416.0,87415.0,0.6074]
[1742946070622,0.00164001,87416.0,87415.0,0.7217831]
[1742946070818,0.0004,87416.0,87415.0,0.7217831]
[1742946071024,0.1147818,87416.0,87415.0,0.7217831]
[1742946071419,0.1160618,87416.0,87415.0,0.7217831]
[1742946071631,0.00168,87416.0,87415.0,0.7217831]
[1742946071835,0.0004,87416.0,87415.0,0.7217831]
[1742946073535,0.0004,87416.0,87415.0,2.2217831]
[1742946079239,0.0004,87416.0,87415.0,2.3315831]
[1742946079442,0.00017152,87424.0,87423.0,0.1143726]
[1742946079645,0.11586282,87424.0,87423.0,0.7558526]
[1742946079938,0.11578283,87424.0,87423.0,0.7558526]
[1742946080144,0.00141153,87424.0,87423.0,0.7558526]
[1742946080339,0.00017152,87424.0,87423.0,0.8656526]
[1742946080736,0.00017152,87424.0,87423.0,0.8676526]
[1742946081132,0.00017152,87424.0,87423.0,0.8696526]
[1742946081542,0.00017152,87424.0,87423.0,0.87011014]
[1742946082343,0.11578283,87424.0,87423.0,0.87011014]
[1742946084843,0.11454282,87424.0,87423.0,0.87011014]
[1742946085736,0.00017152,87424.0,87423.0,0.87011014]
[1742946085937,0.11454282,87424.0,87423.0,0.87011014]
[1742946086546,0.11578283,87424.0,87423.0,0.87011014]
[1742946087142,0.16928283,87424.0,87423.0,0.87011014]
[1742946087946,0.16804282,87424.0,87423.0,0.87011014]
[1742946088151,0.00141153,87424.0,87423.0,0.87011014]
[1742946088450,0.11454282,87424.0,87423.0,0.87011014]
[1742946088659,0.11578283,87424.0,87423.0,0.75573754]
[1742946088843,0.16804282,87424.0,87423.0,0.75573754]
[1742946089038,0.16936282,87424.0,87423.0,0.87011014]
[1742946089243,0.16804282,87424.0,87423.0,0.87011014]
[1742946089649,0.05367152,87424.0,87423.0,0.87011014]
[1742946089848,0.00145152,87424.0,87423.0,0.87011014]
[1742946090049,0.00017152,87424.0,87423.0,0.87011014]
[1742946092460,0.00141153,87424.0,87423.0,0.87011014]
[1742946093256,0.00017152,87424.0,87423.0,0.87011014]
[1742946094154,0.00149152,87424.0,87423.0,2.37011014]
[1742946094350,0.00017152,87424.0,87423.0,2.37011014]
[1742946094755,0.0004,87432.0,87423.0,2.25573754]
[1742946094954,0.10992,87441.0,87436.0,0.0571776]
[1742946095150,0.00124001,87441.0,87440.0,0.5323252]
[1742946095361,0.11032,87448.0,87447.0,0.1143412]
[1742946095563,0.1116,87448.0,87447.0,0.7557812]
[1742946095757,0.22589991,87448.0,87447.0,0.7557812]
[1742946096159,0.22589991,87448.0,87447.0,0.75074]
[1742946096359,0.22589991,87448.0,87447.0,0.8650812]
[1742946096565,0.2791599,87448.0,87447.0,0.8650812]
[1742946096759,0.2791599,87448.0,87447.0,0.9160812]
[1742946097866,0.2801599,87448.0,87447.0,0.9160812]
[1742946098256,0.16582,87448.0,87447.0,0.9160812]
[1742946098455,0.16982,87448.0,87447.0,0.9160812]
[1742946098657,0.17114,87448.0,87447.0,0.9160812]
[1742946099061,0.16982,87448.0,87447.0,0.9160812]
[1742946099762,0.17106001,87448.0,87447.0,0.9160812]
[1742946101260,0.16982,87448.0,87447.0,0.9160812]